bitfinex/quotes_SOLUSD_20230404
["timestamp","ask_amount","ask_price","bid_price","bid_amount"]
[1680593634580,17.0,20.525,20.512,20.0]
[1680593635181,17.0,20.525,20.511,47.27599149]
[1680593635792,115.3073,20.526,20.511,27.27599149]
[1680593636390,115.3073,20.526,20.512,17.0]
[1680593636579,115.3073,20.526,20.513,20.0]
[1680593639598,115.3073,20.526,20.512,20.0]
[1680593640785,115.3073,20.526,20.513,19.499]
[1680593640985,115.3073,20.526,20.514,17.0]
[1680593642502,115.3073,20.526,20.513,19.499]
[1680593643303,115.3073,20.526,20.514,17.0]
[1680593643495,115.3073,20.526,20.515,20.0]
[1680593643695,115.3073,20.526,20.516,17.0]
[1680593644390,112.4085,20.535,20.517,19.495]
[1680593644595,20.0,20.534,20.518,17.0]
[1680593644893,20.0,20.534,20.518,24.27599149]
[1680593645091,20.0,20.533,20.518,24.27599149]
[1680593645604,40.0,20.534,20.518,24.27599149]
[1680593647605,20.0,20.534,20.518,24.27599149]
[1680593647998,40.0,20.534,20.518,24.27599149]
[1680593648298,40.0,20.534,20.518,17.0]
[1680593648503,20.0,20.534,20.518,17.0]
[1680593649301,20.0,20.533,20.517,19.495]
[1680593649500,20.0,20.533,20.518,17.0]
[1680593649702,112.4085,20.535,20.52,28.09]
[1680593650007,112.4085,20.535,20.521,37.0]
[1680593650202,108.4785,20.537,20.521,44.27599149]
[1680593650503,108.4785,20.537,20.522,27.27599149]
[1680593650704,108.4785,20.537,20.523,37.0]
[1680593650887,108.4785,20.537,20.525,19.488]
[1680593651091,109.9954,20.541,20.526,17.0]
[1680593651415,109.9954,20.541,20.526,24.27599149]
[1680593652296,109.9954,20.541,20.525,19.488]
[1680593652505,17.0,20.54,20.525,19.488]
[1680593653004,17.0,20.54,20.526,7.27599149]
[1680593653908,20.0,20.539,20.526,7.27599149]
[1680593654212,20.0,20.539,20.523,20.0]
[1680593654513,17.0,20.538,20.523,20.0]
[1680593655007,17.0,20.539,20.523,20.0]
[1680593655212,17.0,20.539,20.524,7.27599149]
[1680593657413,20.0,20.538,20.524,7.27599149]
[1680593657595,17.0,20.537,20.523,20.0]
[1680593657795,17.0,20.537,20.515,115.7265]
[1680593657796,17.0,20.537,20.52,7.27599149]
[1680593657995,130.6435,20.537,20.521,20.0]
[1680593658197,20.0,20.536,20.521,20.0]
[1680593658499,20.0,20.534,20.521,27.27599149]
[1680593658698,17.0,20.533,20.521,27.27599149]
[1680593659609,17.0,20.535,20.521,27.27599149]
[1680593659911,17.0,20.536,20.521,27.27599149]
[1680593666423,17.0,20.536,20.515,48.76171126]
[1680593666622,20.0,20.535,20.511,128.2425]
[1680593666827,28.18,20.53,20.511,128.2425]
[1680593667011,17.0,20.529,20.511,128.2425]
[1680593667321,17.0,20.529,20.512,20.0]
[1680593667526,17.0,20.529,20.511,128.2425]
[1680593667918,17.0,20.529,20.512,20.0]
[1680593668122,17.0,20.529,20.513,20.0]
[1680593668632,17.0,20.529,20.512,40.0]
[1680593668633,17.0,20.529,20.512,20.0]
[1680593669338,20.0,20.528,20.512,20.0]
[1680593669511,17.0,20.527,20.512,20.0]
[1680593669911,17.0,20.529,20.512,20.0]
[1680593671334,28.18,20.53,20.513,20.0]
[1680593671630,17.0,20.529,20.513,20.0]
[1680593672125,17.0,20.529,20.512,20.0]
[1680593673336,20.0,20.528,20.512,20.0]
[1680593673536,17.0,20.527,20.512,20.0]
[1680593675013,17.0,20.528,20.512,20.0]
[1680593679128,28.18,20.53,20.514,20.0]
[1680593679431,28.18,20.53,20.512,20.0]
[1680593679824,28.18,20.53,20.513,20.0]
[1680593680537,17.0,20.529,20.513,20.0]
[1680593681836,17.0,20.529,20.512,40.0]
[1680593682335,17.0,20.529,20.513,20.0]
[1680593682536,17.0,20.529,20.514,17.0]
[1680593683534,56.31,20.54,20.514,36.498]
[1680593683725,28.23,20.54,20.515,20.0]
[1680593683933,28.23,20.54,20.521,20.0]
[1680593684343,28.23,20.54,20.522,7.27599149]
[1680593684543,28.23,20.54,20.523,20.0]
[1680593685829,28.23,20.54,20.522,20.0]
[1680593686932,28.23,20.54,20.521,20.0]
[1680593691649,28.23,20.54,20.522,19.49]
[1680593692047,28.23,20.54,20.523,20.0]
[1680593692351,28.23,20.54,20.524,20.0]
[1680593692651,17.0,20.536,20.523,20.0]
[1680593693434,17.0,20.536,20.524,20.0]
[1680593694535,17.0,20.536,20.523,20.0]
[1680593698547,17.0,20.536,20.517,67.52196243]
[1680593698755,20.0,20.535,20.512,136.4251]
[1680593698948,17.0,20.534,20.512,136.4251]
[1680593699256,20.0,20.533,20.512,136.4251]
[1680593699453,17.0,20.532,20.512,136.4251]
[1680593699644,20.0,20.531,20.512,136.4251]
[1680593699949,17.0,20.53,20.513,20.0]
[1680593701850,20.0,20.529,20.513,20.0]
[1680593702048,17.0,20.528,20.513,20.0]
[1680593702741,20.0,20.527,20.513,20.0]
[1680593703137,17.0,20.526,20.513,20.0]
[1680593703538,17.0,20.528,20.513,20.0]
[1680593710857,20.0,20.531,20.513,20.0]
[1680593711057,113.1445,20.532,20.515,19.497]
[1680593711950,20.0,20.531,20.515,19.497]
[1680593713547,20.0,20.529,20.515,19.497]
[1680593713753,17.0,20.528,20.515,19.497]
[1680593720852,17.0,20.53,20.515,19.497]
[1680593721256,17.0,20.531,20.515,19.497]
[1680593721465,37.0,20.531,20.515,19.497]
[1680593722372,113.1445,20.532,20.515,19.497]
[1680593722672,113.1445,20.532,20.515,26.77299149]
[1680593722974,20.0,20.531,20.515,26.77299149]
[1680593723853,17.0,20.53,20.515,26.77299149]
[1680593724071,20.0,20.531,20.515,26.77299149]
[1680593724471,17.0,20.53,20.515,26.77299149]
[1680593727572,113.1445,20.532,20.515,26.77299149]
[1680593727775,113.1445,20.532,20.516,17.0]
[1680593728069,113.1445,20.532,20.519,19.493]
[1680593732271,20.0,20.538,20.519,19.493]
[1680593732577,17.0,20.536,20.52,27.27599149]
[1680593733774,37.0,20.536,20.52,27.27599149]
[1680593734679,37.0,20.536,20.52,27.27599149]
[1680593734862,17.0,20.536,20.52,27.27599149]
[1680593735062,37.0,20.536,20.52,27.27599149]
[1680593737980,17.0,20.536,20.52,27.27599149]
[1680593739979,37.0,20.536,20.52,27.27599149]
[1680593741783,17.0,20.536,20.52,27.27599149]
[1680593742169,17.0,20.536,20.52,55.49599149]
[1680593742974,37.0,20.536,20.52,55.49599149]
[1680593743370,37.0,20.536,20.52,48.22]
[1680593743566,37.0,20.536,20.515,266.54407094]
[1680593743567,37.0,20.536,20.515,286.04107094]
[1680593743887,20.0,20.534,20.515,245.2901]
[1680593744083,37.0,20.533,20.515,245.2901]
[1680593744282,20.0,20.532,20.515,245.2901]
[1680593744486,17.0,20.531,20.515,245.2901]
[1680593747189,17.0,20.531,20.515,116.2732]
[1680593747394,20.0,20.53,20.515,116.2732]
[1680593747886,17.0,20.529,20.515,116.2732]
[1680593751890,17.0,20.531,20.515,116.2732]
[1680593753887,20.0,20.53,20.515,116.2732]
[1680593754092,17.0,20.529,20.515,116.2732]
[1680593757376,17.0,20.531,20.515,116.2732]
[1680593767085,17.0,20.533,20.515,116.2732]
[1680593774901,20.0,20.532,20.515,116.2732]
[1680593775105,17.0,20.531,20.515,116.2732]
[1680593775599,20.0,20.53,20.515,116.2732]
[1680593776015,17.0,20.529,20.515,116.2732]
[1680593781504,17.0,20.531,20.515,116.2732]
[1680593782217,22.61,20.53,20.515,116.2732]
[1680593782520,17.0,20.529,20.515,116.2732]
[1680593785615,17.0,20.529,20.516,20.0]
[1680593785820,20.0,20.534,20.516,20.0]
[1680593785998,17.0,20.533,20.516,20.0]
[1680593787413,20.0,20.536,20.518,20.0]
[1680593787706,20.0,20.535,20.518,27.27599149]
[1680593788110,20.0,20.535,20.519,17.0]
[1680593788324,20.0,20.536,20.519,17.0]
[1680593788514,20.0,20.536,20.518,27.27599149]
[1680593788906,20.0,20.536,20.518,7.27599149]
[1680593789104,20.0,20.536,20.515,113.1546]
[1680593789309,17.0,20.535,20.515,113.1546]
[1680593789520,20.0,20.534,20.515,113.1546]
[1680593789718,20.0,20.532,20.515,113.1546]
[1680593790126,17.0,20.531,20.515,113.1546]
[1680593790325,17.0,20.531,20.515,120.43059149]
[1680593793220,17.0,20.531,20.515,113.1546]
[1680593793714,20.0,20.53,20.515,113.1546]
[1680593793922,17.0,20.529,20.515,113.1546]
[1680593798337,17.0,20.529,20.515,120.43059149]
[1680593798636,20.0,20.528,20.515,120.43059149]
[1680593798835,17.0,20.527,20.515,120.43059149]
[1680593799330,17.0,20.527,20.515,113.1546]
[1680593800621,20.0,20.526,20.515,113.1546]
[1680593800825,17.0,20.525,20.515,113.1546]
[1680593807340,20.0,20.524,20.515,113.1546]
[1680593807637,20.0,20.524,20.511,169.94445874]
[1680593807638,17.0,20.523,20.511,169.94445874]
[1680593808450,17.0,20.523,20.511,113.6679]
[1680593819444,20.0,20.524,20.511,113.6679]
[1680593821052,17.0,20.523,20.511,113.6679]
[1680593822644,20.0,20.524,20.511,113.6679]
[1680593823143,17.0,20.523,20.511,113.6679]
[1680593825761,20.0,20.524,20.511,120.94389149]
[1680593825956,20.0,20.531,20.511,177.22045023]
[1680593826259,135.2032,20.536,20.512,40.75097094]
[1680593826556,135.2032,20.536,20.513,113.27655874]
[1680593827152,135.2032,20.536,20.514,56.27655874]
[1680593827451,135.2032,20.536,20.515,20.0]
[1680593828549,17.0,20.532,20.515,133.2558]
[1680593829347,17.0,20.532,20.516,7.27599149]
[1680593831444,17.0,20.532,20.515,113.2558]
[1680593832058,20.0,20.531,20.515,113.2558]
[1680593832247,20.0,20.529,20.515,113.2558]
[1680593832648,17.0,20.528,20.515,113.2558]
[1680593842169,17.0,20.53,20.515,113.2558]
[1680593842370,17.0,20.532,20.515,113.2558]
[1680593842967,14.27195963,20.537,20.52,27.98]
[1680593843155,20.0,20.536,20.521,20.0]
[1680593843468,20.0,20.536,20.521,73.17100318]
[1680593843861,20.0,20.537,20.521,73.17100318]
[1680593844565,20.0,20.537,20.521,53.17100318]
[1680593844755,20.0,20.537,20.522,20.0]
[1680593845360,17.0,20.536,20.522,20.0]
[1680593845560,20.0,20.535,20.522,20.0]
[1680593845777,17.0,20.534,20.522,20.0]
[1680593846575,17.0,20.534,20.521,20.0]
[1680593848170,20.0,20.535,20.521,20.0]
[1680593848369,20.0,20.537,20.521,20.0]
[1680593849662,17.0,20.536,20.521,20.0]
[1680593849863,20.0,20.535,20.521,20.0]
[1680593853193,20.0,20.535,20.52,42.25352458]
[1680593853492,17.0,20.534,20.52,42.25352458]
[1680593856989,17.0,20.534,20.521,20.0]
[1680593859067,17.0,20.534,20.52,42.25352458]
[1680593860090,17.0,20.534,20.52,27.98]
[1680593860982,20.0,20.535,20.52,27.98]
[1680593861189,20.0,20.537,20.52,27.98]
[1680593861368,17.0,20.536,20.52,27.98]
[1680593861572,20.0,20.535,20.52,27.98]
[1680593862788,17.0,20.534,20.52,27.98]
[1680593862995,20.0,20.533,20.52,27.98]
[1680593863181,17.0,20.532,20.52,27.98]
[1680593868182,17.0,20.534,20.52,27.98]
[1680593871398,17.0,20.534,20.52,35.25599149]
[1680593872595,115.4161,20.537,20.521,37.0]
[1680593872796,115.4161,20.537,20.522,20.0]
[1680593873097,115.4161,20.537,20.524,20.0]
[1680593873484,115.4161,20.537,20.525,7.27599149]
[1680593874895,20.0,20.538,20.525,7.27599149]
[1680593877206,20.0,20.544,20.525,7.27599149]
[1680593877412,17.0,20.543,20.524,20.0]
[1680593877707,17.0,20.543,20.526,20.0]
[1680593879702,17.0,20.544,20.526,20.0]
[1680593881099,20.0,20.546,20.527,17.0]
[1680593881294,20.0,20.545,20.527,17.0]
[1680593881494,20.0,20.545,20.527,24.27599149]
[1680593881802,20.0,20.545,20.528,7.27599149]
[1680593883015,17.0,20.544,20.528,7.27599149]
[1680593883403,17.0,20.544,20.527,17.0]
[1680593884499,20.0,20.543,20.527,17.0]
[1680593884703,17.0,20.542,20.527,17.0]
[1680593885496,17.0,20.542,20.528,7.27599149]
[1680593885797,17.0,20.542,20.528,3.1122632]
[1680593886102,17.0,20.542,20.528,7.27599149]
[1680593890609,20.0,20.541,20.528,7.27599149]
[1680593890813,17.0,20.54,20.528,7.27599149]
[1680593893198,17.0,20.541,20.528,7.27599149]
[1680593893407,17.0,20.541,20.524,20.0]
[1680593893812,17.0,20.541,20.525,7.27599149]
[1680593896899,17.0,20.542,20.525,7.27599149]
[1680593897101,20.0,20.543,20.525,7.27599149]
[1680593897313,20.0,20.543,20.527,19.486]
[1680593897514,20.0,20.543,20.531,20.0]
[1680593904823,534.42860147,20.544,20.53,28.0]
[1680593905121,20.0,20.543,20.531,17.0]
[1680593905715,20.0,20.546,20.531,17.0]
[1680593907219,20.0,20.546,20.53,35.27599149]
[1680593907416,20.0,20.544,20.53,35.27599149]
[1680593907613,17.0,20.543,20.53,35.27599149]
[1680593908617,17.0,20.545,20.53,28.0]
[1680593908818,20.0,20.544,20.53,28.0]
[1680593909021,17.0,20.543,20.53,28.0]
[1680593911828,20.0,20.544,20.531,20.0]
[1680593912027,20.0,20.546,20.532,17.0]
[1680593915831,28.0,20.545,20.532,17.0]
[1680593916015,20.0,20.544,20.532,17.0]
[1680593916725,20.0,20.544,20.53,28.0]
[1680593916925,20.0,20.544,20.531,17.0]
[1680593918216,20.0,20.544,20.53,28.0]
[1680593918421,20.0,20.544,20.529,20.0]
[1680593918925,20.0,20.544,20.53,17.0]
[1680593921632,20.0,20.544,20.529,17.0]
[1680593922319,37.0,20.543,20.528,7.27599149]
[1680593923632,17.0,20.543,20.528,7.27599149]
[1680593924823,20.0,20.542,20.528,7.27599149]
[1680593925133,17.0,20.541,20.525,40.75097094]
[1680593925333,17.0,20.541,20.526,7.27599149]
[1680593929738,17.0,20.542,20.526,7.27599149]
[1680593930743,20.0,20.541,20.526,7.27599149]
[1680593930936,17.0,20.54,20.526,7.27599149]
[1680593931343,125.8613,20.54,20.526,7.27599149]
[1680593931642,20.0,20.539,20.526,7.27599149]
[1680593931941,17.0,20.538,20.526,7.27599149]
[1680593933647,109.939,20.537,20.526,7.27599149]
[1680593938246,17.0,20.536,20.526,7.27599149]
[1680593938444,109.939,20.537,20.526,7.27599149]
[1680593939553,109.939,20.537,20.524,14.42801596]
[1680593939852,109.939,20.537,20.525,7.27599149]
[1680593940543,109.939,20.537,20.522,53.17217551]
[1680593941443,109.939,20.537,20.524,7.27599149]
[1680593942143,109.939,20.537,20.525,37.0]
[1680593942524,109.939,20.537,20.526,7.27599149]
[1680593942740,109.939,20.537,20.527,17.0]
[1680593943141,109.939,20.537,20.528,7.27599149]
[1680593943535,108.8613,20.54,20.53,20.0]
[1680593943939,108.8613,20.54,20.531,44.27599149]
[1680593944950,20.0,20.547,20.531,44.27599149]
[1680593945148,20.0,20.547,20.531,27.27599149]
[1680593949652,17.0,20.544,20.531,20.0]
[1680593949847,17.0,20.544,20.528,20.0]
[1680593951334,17.0,20.544,20.521,19.492]
[1680593951538,40.0,20.543,20.521,19.492]
[1680593951737,17.0,20.542,20.521,19.492]
[1680593951941,20.0,20.541,20.521,19.492]
[1680593952252,20.0,20.539,20.521,19.492]
[1680593952750,17.0,20.538,20.522,20.0]
[1680593953053,28.1,20.54,20.523,20.0]
[1680593953645,28.1,20.54,20.522,40.0]
[1680593953850,28.1,20.54,20.522,20.0]
[1680593954051,17.0,20.539,20.522,20.0]
[1680593962458,28.1,20.54,20.524,19.488]
[1680593962662,20.0,20.543,20.525,17.0]
[1680593962860,20.0,20.543,20.526,20.0]
[1680593963258,20.0,20.543,20.525,17.0]
[1680593963562,20.0,20.543,20.525,24.27599149]
[1680593963752,20.0,20.541,20.525,24.27599149]
[1680593963947,17.0,20.54,20.525,7.27599149]
[1680593964154,45.02,20.54,20.525,7.27599149]
[1680593965665,45.02,20.54,20.524,19.488]
[1680593967661,45.02,20.54,20.524,26.76399149]
[1680593971570,45.02,20.54,20.524,19.488]
[1680593972569,45.02,20.54,20.526,20.0]
[1680593973078,28.02,20.54,20.525,17.0]
[1680593974887,28.02,20.54,20.524,26.76399149]
[1680593975081,17.0,20.539,20.524,26.76399149]
[1680593975463,17.0,20.539,20.524,19.488]
[1680593977289,28.02,20.54,20.524,19.488]
[1680593977489,28.02,20.54,20.525,17.0]
[1680593977780,28.02,20.54,20.526,7.27599149]
[1680593980182,17.0,20.542,20.526,7.27599149]
[1680593980570,17.0,20.542,20.528,20.0]
[1680593980972,48.1,20.543,20.528,27.27599149]
[1680593982386,17.0,20.542,20.528,27.27599149]
[1680593982587,17.0,20.542,20.528,7.27599149]
[1680593984282,130.4007,20.542,20.528,7.27599149]
[1680593991689,130.4007,20.542,20.526,20.0]
[1680593992599,130.4007,20.542,20.525,17.0]
[1680593994501,130.4007,20.542,20.526,7.27599149]
[1680593994902,130.4007,20.542,20.526,27.27599149]
[1680593995202,130.4007,20.542,20.527,7.27599149]
[1680593998207,20.0,20.541,20.527,7.27599149]
[1680593998398,17.0,20.54,20.527,7.27599149]
[1680593998597,17.0,20.54,20.522,20.0]
[1680594000622,17.0,20.54,20.523,7.27599149]
[1680594001806,20.0,20.539,20.523,7.27599149]
[1680594002014,17.0,20.538,20.523,7.27599149]
[1680594004603,17.0,20.538,20.522,20.0]
[1680594005215,17.0,20.538,20.522,68.9110644]
[1680594006108,17.0,20.54,20.522,68.9110644]
[1680594006304,20.0,20.539,20.522,68.9110644]
[1680594006616,17.0,20.538,20.522,68.9110644]
[1680594006914,17.0,20.538,20.523,20.0]
[1680594007120,17.0,20.54,20.523,20.0]
[1680594008019,17.0,20.54,20.524,7.27599149]
[1680594011000,17.0,20.541,20.524,7.27599149]
[1680594012618,17.0,20.541,20.523,20.0]
[1680594012811,17.0,20.541,20.524,17.0]
[1680594014215,17.0,20.541,20.525,20.0]
[1680594014414,17.0,20.541,20.526,17.0]
[1680594014721,17.0,20.541,20.526,24.27599149]
[1680594014907,17.0,20.541,20.527,7.27599149]
[1680594019423,17.0,20.541,20.522,20.0]
[1680594019619,28.02,20.54,20.523,17.0]
[1680594019823,17.0,20.541,20.524,7.27599149]
[1680594020008,113.4007,20.542,20.525,17.0]
[1680594020208,113.4007,20.542,20.526,20.0]
[1680594020420,113.4007,20.542,20.527,17.0]
[1680594021007,20.0,20.541,20.523,20.0]
[1680594021213,17.0,20.54,20.522,19.491]
[1680594021419,20.0,20.539,20.523,20.0]
[1680594021618,17.0,20.538,20.523,27.27599149]
[1680594021818,17.0,20.538,20.524,7.27599149]
[1680594023228,108.2144,20.537,20.524,7.27599149]
[1680594044119,112.9497,20.536,20.524,7.27599149]
[1680594045538,112.9497,20.536,20.523,20.0]
[1680594046549,17.0,20.535,20.523,20.0]
[1680594046733,112.9497,20.536,20.523,20.0]
[1680594046932,112.9497,20.536,20.522,20.0]
[1680594047651,17.0,20.535,20.522,20.0]
[1680594047851,20.0,20.534,20.522,20.0]
[1680594048151,20.0,20.534,20.521,20.0]
[1680594052748,37.0,20.535,20.521,20.0]
[1680594055148,20.0,20.534,20.521,20.0]
[1680594056253,37.0,20.535,20.521,20.0]
[1680594057755,17.0,20.535,20.521,20.0]
[1680594058155,20.0,20.534,20.521,20.0]
[1680594058951,37.0,20.535,20.521,20.0]
[1680594059141,17.0,20.535,20.521,20.0]
[1680594064855,112.9497,20.536,20.524,19.489]
[1680594068462,112.9497,20.536,20.522,20.0]
[1680594068662,20.0,20.535,20.523,20.0]
[1680594068848,20.0,20.535,20.521,27.27599149]
[1680594069262,112.9497,20.536,20.521,20.0]
[1680594069464,37.0,20.535,20.521,20.0]
[1680594070665,17.0,20.535,20.521,20.0]
[1680594072065,20.0,20.534,20.521,20.0]
[1680594073160,20.0,20.534,20.52,22.47]
[1680594073347,37.0,20.533,20.52,22.47]
[1680594073551,20.0,20.532,20.514,19.498]
[1680594074065,17.0,20.531,20.514,19.498]
[1680594074360,20.0,20.53,20.514,19.498]
[1680594074678,20.0,20.528,20.514,19.498]
[1680594075563,20.0,20.526,20.51,93.9610644]
[1680594075766,20.0,20.526,20.511,20.0]
[1680594075966,17.0,20.525,20.511,20.0]
[1680594076562,40.0,20.524,20.51,45.05]
[1680594076762,17.0,20.523,20.51,22.47]
[1680594077661,20.0,20.522,20.51,22.47]
[1680594078051,17.0,20.521,20.51,22.47]
[1680594080472,17.0,20.521,20.505,19.507]
[1680594080661,17.0,20.521,20.506,17.0]
[1680594081455,17.0,20.521,20.505,17.0]
[1680594082269,20.0,20.522,20.505,17.0]
[1680594082467,17.0,20.521,20.505,17.0]
[1680594086776,17.0,20.521,20.503,14.39928808]
[1680594086958,17.0,20.521,20.5,111.25594939]
[1680594087159,20.0,20.524,20.504,19.508]
[1680594087473,20.0,20.522,20.505,20.0]
[1680594087863,37.0,20.523,20.505,20.0]
[1680594088177,37.0,20.523,20.506,17.0]
[1680594090470,20.0,20.522,20.504,112.5692]
[1680594090667,17.0,20.521,20.504,112.5692]
[1680594091057,17.0,20.521,20.505,17.0]
[1680594092880,17.0,20.521,20.504,112.5692]
[1680594096784,17.0,20.521,20.504,103.51975144]
[1680594097889,17.0,20.522,20.505,20.0]
[1680594098469,17.0,20.522,20.504,103.51975144]
[1680594099187,20.0,20.521,20.504,103.51975144]
[1680594099389,17.0,20.52,20.504,103.51975144]
[1680594101687,27.27599149,20.523,20.504,103.51975144]
[1680594101889,27.27599149,20.523,20.505,17.0]
[1680594102482,27.27599149,20.523,20.504,123.02675144]
[1680594102686,27.27599149,20.523,20.505,20.0]
[1680594102999,17.0,20.522,20.505,20.0]
[1680594103182,20.0,20.521,20.504,123.02675144]
[1680594103384,17.0,20.52,20.504,123.02675144]
[1680594103593,17.0,20.52,20.505,17.0]
[1680594103797,20.0,20.523,20.505,17.0]
[1680594104096,17.0,20.522,20.505,17.0]
[1680594104284,17.0,20.522,20.506,20.0]
[1680594104485,17.0,20.522,20.507,17.0]
[1680594104887,17.0,20.522,20.506,20.0]
[1680594105092,17.0,20.522,20.507,17.0]
[1680594107488,17.0,20.522,20.506,17.0]
[1680594109289,20.0,20.523,20.506,17.0]
[1680594109503,20.0,20.525,20.506,24.27599149]
[1680594109997,20.0,20.525,20.507,20.0]
[1680594110193,119.9062,20.526,20.51,28.27]
[1680594110387,117.4807,20.529,20.512,19.5]
[1680594110586,117.4807,20.529,20.513,37.0]
[1680594111085,117.4807,20.529,20.514,20.0]
[1680594111290,117.4807,20.529,20.515,17.0]
[1680594111690,20.0,20.524,20.515,17.0]
[1680594112286,20.0,20.524,20.514,17.0]
[1680594122019,20.0,20.524,20.513,20.0]
[1680594128826,20.0,20.524,20.508,48.41923107]
[1680594129137,37.0,20.523,20.504,146.90305899]
[1680594130721,37.0,20.523,20.504,132.1222]
[1680594131934,37.0,20.523,20.504,112.6142]
[1680594144742,7.27599149,20.522,20.504,112.6142]
[1680594144942,17.0,20.521,20.504,112.6142]
[1680594145141,20.0,20.523,20.504,112.6142]
[1680594145334,17.0,20.522,20.504,112.6142]
[1680594145533,20.0,20.521,20.504,112.6142]
[1680594145844,17.0,20.52,20.504,112.6142]
[1680594146050,20.0,20.519,20.504,112.6142]
[1680594146345,17.0,20.518,20.504,112.6142]
[1680594149045,17.0,20.52,20.504,112.6142]
[1680594152644,17.0,20.52,20.501,160.13293107]
[1680594152847,17.0,20.52,20.502,20.0]
[1680594153340,17.0,20.52,20.502,27.27599149]
[1680594153748,17.0,20.52,20.502,20.0]
[1680594154548,17.0,20.52,20.502,27.27599149]
[1680594154750,20.0,20.519,20.502,20.0]
[1680594154939,17.0,20.518,20.502,20.0]
[1680594156540,17.0,20.518,20.499,20.0]
[1680594156740,17.0,20.518,20.495,20.0]
[1680594156741,20.0,20.517,20.495,20.0]
[1680594156938,37.0,20.516,20.495,20.0]
[1680594157139,37.0,20.516,20.495,55.16494939]
[1680594157339,37.0,20.516,20.495,103.58418046]
[1680594158242,37.0,20.516,20.498,19.513]
[1680594158551,115.5112,20.515,20.499,17.0]
[1680594158757,17.0,20.514,20.499,17.0]
[1680594162458,115.5112,20.515,20.5,20.0]
[1680594162753,17.0,20.514,20.501,20.0]
[1680594162932,17.0,20.514,20.502,20.0]
[1680594163653,17.0,20.514,20.501,20.0]
[1680594164447,17.0,20.514,20.5,20.0]
[1680594170958,17.0,20.514,20.499,20.0]
[1680594171265,17.0,20.514,20.491,20.0]
[1680594171266,17.0,20.514,20.497,116.0033]
[1680594171559,20.0,20.512,20.497,116.0033]
[1680594171755,17.0,20.511,20.497,116.0033]
[1680594171958,20.0,20.51,20.497,116.0033]
[1680594172256,17.0,20.509,20.497,116.0033]
[1680594172456,20.0,20.508,20.497,116.0033]
[1680594173264,20.0,20.508,20.493,73.4199]
[1680594173565,20.0,20.506,20.493,73.4199]
[1680594173864,17.0,20.505,20.493,73.4199]